bitfinex-derivatives/quotes_SOLF0:USTF0_20260217
["timestamp","ask_amount","ask_price","bid_price","bid_amount"]
[1771361697664,10.5881,85.048,85.001,4.10446772]
[1771361698055,10.5872,85.055,85.011,4.10446772]
[1771361698455,1.99410565,85.05,85.011,4.10446772]
[1771361700251,1.52450859,85.077,85.011,4.10446772]
[1771361700451,1.52450859,85.049,85.0,1.99410565]
[1771361700761,1.51480742,85.029,84.985,4.10446772]
[1771361701359,1.51480742,85.029,84.985,14.70026772]
[1771361701755,1.99410565,85.01,84.967,10.598]
[1771361702061,1.99410565,85.01,84.964,4.10446772]
[1771361702655,1.99410565,85.02,84.974,4.10446772]
[1771361702955,1.99410565,85.03,84.981,4.10446772]
[1771361703767,1.42783866,85.029,84.987,10.5956]
[1771361704460,1.42783866,85.029,84.981,4.10446772]
[1771361704461,1.42783866,85.029,84.993,10.5948]
[1771361704662,1.99410565,85.03,84.994,4.10446772]
[1771361705261,1.99410565,85.03,84.964,74.08]
[1771361705262,1.99410565,85.05,85.0,1.99410565]
[1771361705565,3.40253853,85.05,85.001,4.10446772]
[1771361706459,1.39788078,85.039,85.004,10.5934]
[1771361706656,1.39788078,85.039,84.985,4.10446772]
[1771361706861,1.38891238,85.029,84.995,10.5945]
[1771361707062,1.99410565,85.03,84.985,4.10446772]
[1771361707262,1.99410565,85.04,84.991,4.10446772]
[1771361707662,1.99410565,85.03,84.996,4.10446772]
[1771361708563,1.99410565,85.02,84.983,14.70056772]
[1771361708864,1.38918614,85.019,84.978,74.08]
[1771361709063,1.99410565,85.01,84.97,4.10446772]
[1771361709661,1.99410565,85.01,84.973,10.5973]
[1771361709860,1.99410565,85.01,84.974,4.10446772]
[1771361710565,11.98088614,85.019,84.974,4.10446772]
[1771361710763,11.98088614,85.019,84.978,10.5967]
[1771361710960,1.99410565,85.03,84.979,4.10446772]
[1771361711565,1.38286917,85.059,84.992,4.10446772]
[1771361711767,1.99410565,85.04,84.992,4.10446772]
[1771361713164,1.37079096,85.047,85.002,4.10446772]
[1771361713769,1.37079096,85.047,85.011,10.5926]
[1771361713971,1.34494773,85.039,84.99,1.99410565]
[1771361714166,1.34494773,85.039,84.99,6.09857337]
[1771361714463,1.34494773,85.039,84.998,10.5942]
[1771361715566,1.34494773,85.039,84.998,14.81303956]
[1771361715765,1.34494773,85.039,85.002,10.5937]
[1771361718374,1.34494773,85.039,85.009,10.5928]
[1771361718574,1.34494773,85.039,84.999,4.21883956]
[1771361719871,1.34494773,85.039,85.003,10.5936]
[1771361721075,1.34494773,85.039,85.009,10.5928]
[1771361723371,1.34494773,85.039,85.0,10.5939]
[1771361723574,1.34494773,85.039,84.999,4.21883956]
[1771361724078,1.99410565,85.04,84.999,4.21883956]
[1771361724878,1.99410565,85.04,85.006,10.5932]
[1771361725078,1.99410565,85.04,84.999,4.21883956]
[1771361725280,1.17424748,85.039,84.999,4.21883956]
[1771361725680,1.17424748,85.039,85.0,4.21883956]
[1771361726882,1.17424748,85.039,85.002,10.5936]
[1771361727279,1.17424748,85.039,84.98,1.99410565]
[1771361727280,1.99410565,85.03,84.994,10.5947]
[1771361727785,1.21885163,85.036,84.995,4.21883956]
[1771361728681,1.21885163,85.036,84.998,10.5942]
[1771361729477,1.21885163,85.036,84.999,4.21883956]
[1771361732186,1.99410565,85.03,84.999,4.21883956]
[1771361733675,12.58450565,85.03,84.999,4.21883956]
[1771361733880,1.99410565,85.03,84.999,4.21883956]
[1771361735879,1.21885163,85.036,85.0,4.21883956]
[1771361736783,1.21885163,85.036,85.001,10.5938]
[1771361737182,1.21885163,85.036,85.002,4.21883956]
[1771361737585,10.5897,85.035,85.002,4.21883956]
[1771361740081,0.84044379,85.057,85.009,4.21883956]
[1771361740283,0.84044379,85.057,84.98,21.1928]
[1771361740284,0.84044379,85.057,85.011,4.21883956]
[1771361741690,10.5871,85.056,85.014,10.5922]
[1771361741893,10.5871,85.056,85.015,4.21883956]
[1771361742786,10.5871,85.056,85.017,4.21883956]
[1771361742983,1.99410565,85.05,85.017,4.21883956]
[1771361749989,1.99178457,85.05,85.017,4.21883956]
[1771361750384,1.99178457,85.05,85.02,14.5911046]
[1771361750588,1.99178457,85.05,85.021,3.9996046]
[1771361750996,0.9271881,85.049,85.001,3.9996046]
[1771361751194,0.9271881,85.029,84.988,3.9996046]
[1771361751385,1.99178457,85.04,84.991,3.9996046]
[1771361751693,1.99178457,85.05,85.001,3.9996046]
[1771361752090,10.5881,85.048,85.009,3.9996046]
[1771361752292,1.99178457,85.04,84.99,1.99178457]
[1771361752497,0.91525008,85.039,84.991,3.9996046]
[1771361752802,1.99178457,85.03,84.991,3.9996046]
[1771361753494,0.91525008,85.039,84.991,3.9996046]
[1771361753700,0.91525008,85.039,85.001,10.5938]
[1771361754497,0.91525008,85.039,85.007,10.5931]
[1771361755695,1.99178457,85.04,85.008,4.09330393]
[1771361755899,1.99178457,85.05,85.012,4.09330393]
[1771361756395,1.99178457,85.06,85.012,4.09330393]
[1771361756801,1.99178457,85.06,85.02,4.09330393]
[1771361757796,1.99178457,85.06,85.028,10.5905]
[1771361758405,0.967569,85.049,85.008,4.09330393]
[1771361759704,0.967569,85.049,85.018,10.5918]
[1771361760603,1.99178457,85.03,84.994,4.09330393]
[1771361760797,1.99178457,85.04,84.994,4.09330393]
[1771361761003,1.99178457,85.05,84.994,4.09330393]
[1771361761204,1.99178457,85.05,85.001,4.09330393]
[1771361762009,0.94511168,85.049,85.001,4.09330393]
[1771361762803,0.94511168,85.049,84.99,1.99178457]
[1771361762804,0.94511168,85.049,85.007,14.68630393]
[1771361763010,0.94061766,85.039,84.991,4.09330393]
[1771361763210,0.94061766,85.029,84.991,4.09330393]
[1771361764915,0.94061766,85.029,84.995,10.5946]
[1771361766107,0.94061766,85.029,84.991,4.09330393]
[1771361767013,1.00587848,85.027,84.991,4.09330393]
[1771361767211,1.99178457,85.03,84.991,4.09330393]
[1771361768614,1.00587848,85.039,84.993,4.09330393]
[1771361769418,10.5894,85.037,84.994,4.09330393]
[1771361769818,1.99178457,85.02,84.981,4.09330393]
[1771361770416,0.99389015,85.019,84.981,4.09330393]
[1771361771415,1.99178457,85.03,84.989,4.09330393]
[1771361771617,1.01208594,85.039,84.989,4.09330393]
[1771361772723,10.5895,85.037,84.994,4.09330393]
[1771361773318,1.0032696,85.036,84.994,4.09330393]
[1771361773515,1.99178457,85.03,84.994,4.09330393]
[1771361773816,1.99178457,85.03,84.996,10.5945]
[1771361774618,10.5904,85.029,84.994,4.09330393]
[1771361777227,74.08,85.053,84.966,21.76494078]
[1771361777228,10.5928,85.01,84.966,21.76494078]
[1771361777420,1.99178457,85.0,84.951,3.79734165]
[1771361778222,1.99178457,85.0,84.957,3.79734165]
[1771361779716,10.5922,85.015,84.971,3.79734165]
[1771361779920,10.5922,85.015,84.937,74.08]
[1771361779921,1.99178457,85.03,84.981,3.79734165]
[1771361780120,0.94842152,85.029,84.981,3.79734165]
[1771361780323,1.99178457,85.02,84.981,3.79734165]
[1771361781129,12.58338457,85.02,84.981,3.79734165]
[1771361782724,1.99178457,85.02,84.982,3.79734165]
[1771361783429,10.5917,85.019,84.982,3.79734165]
[1771361785930,1.99178457,85.02,84.985,3.79734165]
[1771361786333,12.58338457,85.02,84.985,3.79734165]
[1771361787630,0.9258011,85.017,84.971,3.79734165]
[1771361788840,0.9258011,85.017,84.978,14.39404165]
[1771361789033,0.9258011,85.017,84.979,3.79734165]
[1771361789235,1.99178457,85.02,84.983,3.79734165]
[1771361789534,1.99178457,85.03,84.983,3.79734165]
[1771361790034,2.970938,85.04,84.998,3.79734165]
[1771361790435,2.970938,85.04,84.999,10.594]
[1771361790639,2.970938,85.04,85.0,3.79734165]
[1771361791438,1.99178457,85.04,85.0,3.79734165]
[1771361791936,1.99178457,85.04,85.002,3.79734165]
[1771361792134,1.99178457,85.05,85.002,3.79734165]
[1771361792340,1.99178457,85.05,85.005,3.79734165]
[1771361792535,1.99178457,85.04,85.005,3.79734165]
[1771361793331,1.99178457,85.04,85.008,3.79734165]
[1771361794237,1.99178457,85.04,85.012,10.5924]
[1771361794542,1.99178457,85.04,85.013,3.79734165]
[1771361794744,1.99178457,85.05,85.013,3.79734165]
[1771361795932,1.99178457,85.05,85.014,10.5923]
[1771361797140,1.99178457,85.05,85.014,14.38964165]
[1771361797342,1.99178457,85.05,85.017,10.5918]
[1771361800240,1.99178457,85.05,85.017,14.38914165]
[1771361802643,1.01866,85.068,85.02,3.79734165]
[1771361802842,1.99178457,85.06,85.02,3.79734165]
[1771361803639,1.99178457,85.06,85.029,10.5904]
[1771361804648,1.01866,85.068,84.993,21.1898]
[1771361804649,1.99178457,85.05,85.023,4.02649557]
[1771361805350,1.99178457,85.03,84.991,4.02649557]
[1771361806553,1.99178457,85.03,85.001,10.5938]
[1771361806748,1.09008865,85.029,84.991,4.02649557]
[1771361806957,1.99178457,85.02,84.991,4.02649557]
[1771361809957,1.99311195,85.02,84.991,4.02649557]
[1771361812054,1.99311195,85.02,84.965,74.08]
[1771361812055,1.99311195,85.03,84.993,4.02649557]
[1771361813860,1.99311195,85.03,84.996,4.02075438]
[1771361814357,1.99311195,85.02,84.988,4.02075438]
[1771361814966,1.15258376,85.039,84.997,4.02075438]
[1771361815452,11.74178376,85.039,84.997,4.02075438]
[1771361816258,1.99311195,85.03,84.997,4.02075438]
[1771361816656,1.99311195,85.03,84.999,4.02075438]
[1771361817060,1.99311195,85.02,84.999,4.02075438]
[1771361817257,1.99311195,85.02,84.988,4.02075438]
[1771361818767,1.99311195,85.02,84.989,10.5953]
[1771361819168,10.5906,85.028,84.989,10.5953]
[1771361820368,8.73708677,85.049,84.988,4.02075438]
[1771361820369,1.99311195,85.02,84.988,4.02075438]
[1771361822373,115.54347857,85.251,84.969,74.08]
[1771361822374,1.1340324,85.009,84.969,74.08]
[1771361822575,1.1340324,85.009,84.969,78.10075438]
[1771361822775,1.1340324,85.009,84.97,4.02075438]
[1771361822979,1.1340324,85.009,84.97,14.61845438]
[1771361824271,1.1340324,85.009,84.976,10.5969]
[1771361825477,1.1340324,85.009,84.97,4.02075438]
[1771361829375,1.14368947,85.021,84.98,4.02075438]
[1771361829575,1.99311195,85.02,84.98,4.02075438]
[1771361829782,10.5913,85.022,84.981,4.02075438]
[1771361830772,10.5913,85.022,84.982,4.02075438]
[1771361831283,1.99311195,85.02,84.982,4.02075438]
[1771361831682,1.99311195,85.02,84.984,4.02075438]
[1771361833075,1.14368947,85.033,84.942,74.08]
[1771361833076,1.19280923,85.051,84.991,4.02075438]
[1771361833272,1.99311195,85.04,84.991,4.02075438]
[1771361834481,10.588,85.048,85.012,3.97089]
[1771361835680,1.99311195,85.05,85.012,3.97089]
[1771361835884,1.99311195,85.05,84.975,21.1942]
[1771361835885,1.99311195,85.07,85.021,3.97089]
[1771361836085,1.99311195,85.09,85.041,3.97089]
[1771361837184,9.56095405,85.113,85.051,3.97089]
[1771361837385,1.99311195,85.11,85.061,3.97089]
[1771361838786,1.99311195,85.11,85.073,3.97089]
[1771361839091,1.99311195,85.12,85.073,3.97089]
[1771361839792,1.99311195,85.11,85.076,10.5845]
[1771361840387,1.99311195,85.11,85.073,3.97089]
[1771361840388,1.99311195,85.1,85.073,3.97089]
[1771361841491,1.99311195,85.11,85.073,3.97089]
[1771361841794,1.99311195,85.12,85.076,3.97089]
[1771361842486,1.99311195,85.12,85.022,21.76494078]
[1771361842487,1.99311195,85.09,85.047,3.97089]
[1771361842688,1.99311195,85.1,85.051,3.97089]
[1771361843596,1.1554667,85.109,85.061,3.97089]
[1771361843791,1.1554667,85.109,85.068,3.97089]
[1771361844295,1.12485718,85.099,85.056,10.587]
[1771361844491,1.99311195,85.09,85.056,10.587]
[1771361845897,3.3646401,85.07,85.031,3.97089]
[1771361846197,1.99311195,85.06,85.031,3.97089]
[1771361846892,1.37152815,85.069,85.031,3.97089]
[1771361847696,1.37152815,85.069,85.032,10.5899]
[1771361848194,1.99311195,85.05,85.011,3.97089]
[1771361848394,1.99311195,85.05,84.974,235.18]
[1771361848395,1.99311195,85.03,84.997,3.97089]
[1771361849695,1.99311195,85.04,84.998,10.5942]
[1771361849902,1.99311195,85.02,84.973,3.97089]
[1771361850399,1.99311195,85.03,84.989,14.56619]
[1771361850805,1.99311195,85.02,84.989,14.56619]
[1771361851394,1.99311195,85.01,84.975,3.97089]
[1771361851594,1.99311195,85.01,84.957,74.06]
[1771361851595,1.99311195,85.01,84.958,3.97089]
[1771361851903,1.99311195,84.99,84.958,3.97089]
[1771361852503,1.99311195,85.01,84.961,3.97089]
[1771361852894,1.99311195,85.02,84.971,3.97089]
[1771361853296,1.99311195,85.01,84.975,3.97089]
[1771361854102,11.96602225,85.027,84.975,3.97089]
[1771361854296,1.99311195,85.01,84.976,10.5969]
[1771361854500,1.99311195,85.02,84.977,3.97089]
[1771361855700,1.99311195,85.02,84.98,10.5965]
[1771361856497,1.99311195,85.02,84.98,14.56739]
[1771361856698,1.99311195,85.02,84.98,3.97089]
[1771361858009,1.99311195,85.01,84.98,3.97089]
[1771361858800,1.99311195,85.02,84.98,3.97089]
[1771361859394,1.99311195,85.02,84.981,3.97089]
[1771361860107,1.99311195,85.02,84.994,3.97089]
[1771361864904,1.99311195,85.03,84.994,3.97089]
[1771361865402,1.99311195,85.03,84.995,10.5946]
[1771361865992,1.99311195,85.04,84.999,3.96043729]
[1771361866803,1.99311195,85.03,84.999,3.96043729]
[1771361869102,1.99311195,85.03,84.99,10.5952]
[1771361872005,1.99310142,85.03,84.99,10.5952]
[1771361873406,1.99310142,85.03,84.996,10.5944]
[1771361875096,1.99310142,85.03,84.996,14.47145519]
[1771361875304,10.5893,85.038,84.998,10.5942]
[1771361875606,11.80550761,85.038,84.998,10.5942]
[1771361877205,1.99310142,85.03,84.998,10.5942]
[1771361879603,1.99310142,85.03,84.997,3.87705519]
[1771361880105,12.58350142,85.03,84.997,3.87705519]
[1771361880501,1.2223679,85.023,84.986,10.5957]
[1771361880709,1.2223679,85.023,84.987,3.87705519]
[1771361881208,1.99310142,85.03,84.987,3.87705519]
[1771361881807,12.58340142,85.03,84.991,3.87705519]
[1771361883807,12.58340142,85.03,84.993,10.5948]
[1771361884011,1.99310142,85.03,84.994,3.87705519]
[1771361885615,12.58350142,85.03,84.994,3.87705519]
[1771361887713,1.22402717,85.027,84.988,10.5955]
[1771361888507,1.22286662,85.009,84.968,3.87705519]
[1771361888701,1.22180458,84.999,84.956,3.87705519]
[1771361889706,1.22180458,84.999,84.957,3.87705519]
[1771361890510,10.90485971,85.042,84.938,74.08]
[1771361890511,10.5931,85.007,84.961,3.87705519]
[1771361891519,11.81549913,85.014,84.976,3.87705519]
[1771361892613,10.5911,85.024,84.981,3.87705519]
[1771361892817,10.5911,85.024,84.947,74.08]
[1771361892818,1.99310142,85.03,84.991,3.87705519]
[1771361893615,10.5896,85.036,84.991,14.47205519]
[1771361893815,10.5896,85.036,84.992,3.87705519]
[1771361894015,1.2832692,85.019,84.978,3.87705519]
[1771361896420,1.2832692,85.019,84.98,3.73965141]
[1771361896621,10.5904,85.029,84.98,3.73965141]
[1771361897822,10.5904,85.029,84.982,3.73965141]
[1771361898523,1.99310142,85.02,84.982,3.73965141]
[1771361899019,3.25660392,85.02,84.982,3.73965141]
[1771361899225,1.99310142,85.01,84.97,3.73965141]
[1771361899623,1.99310142,85.0,84.966,10.5982]
[1771361900428,1.2635025,85.009,84.972,10.5975]
[1771361902122,1.99310142,85.0,84.954,21.76494078]
[1771361902325,1.26150377,84.989,84.948,3.73965141]
[1771361902524,1.99310142,84.98,84.934,3.73965141]
[1771361902728,1.99310142,84.97,84.934,3.73965141]
[1771361903033,1.99310142,84.98,84.934,3.73965141]
[1771361903728,1.99310142,84.98,84.938,3.73965141]
[1771361904633,1.99310142,84.98,84.941,10.6013]
[1771361904835,1.99310142,84.98,84.941,14.34095141]
[1771361905431,1.99310142,84.98,84.942,3.73965141]
[1771361908638,1.99310142,84.97,84.939,10.6016]
[1771361909637,1.99310142,84.97,84.939,14.34125141]
[1771361910137,1.99310142,84.97,84.939,3.73965141]
[1771361911639,1.99310142,84.96,84.93,10.6027]
[1771361912238,1.99310142,84.97,84.932,14.34215141]
[1771361912638,1.99310142,84.97,84.933,3.73965141]
[1771361919742,1.99310142,84.96,84.935,10.6021]
[1771361920244,1.99310142,84.96,84.933,3.73965141]
[1771361920645,3.20788177,84.96,84.921,14.34355141]
[1771361921248,1.99310142,84.95,84.913,3.73965141]
[1771361921851,1.99310142,84.94,84.913,3.73965141]
[1771361922852,10.6006,84.948,84.913,3.73965141]
[1771361924442,1.19090284,84.972,84.921,3.76778857]
[1771361924650,1.99310142,84.97,84.921,3.76778857]
[1771361924846,1.99310142,84.96,84.921,3.76778857]
[1771361925047,1.99310142,84.95,84.921,3.76778857]
[1771361925956,10.5992,84.959,84.921,3.76778857]
[1771361928258,11.84259641,84.959,84.921,3.76778857]
[1771361928448,10.5995,84.957,84.921,3.76778857]
[1771361928650,1.99310142,84.95,84.91,88.47298857]
[1771361929149,1.99310142,84.95,84.911,3.76778857]
[1771361929546,10.6005,84.949,84.912,14.37278857]
[1771361929749,10.6005,84.949,84.913,3.76778857]
[1771361930755,74.1,84.998,84.917,3.76778857]
[1771361930949,1.17242249,84.969,84.921,3.76778857]
[1771361931658,11.77042249,84.969,84.927,10.6031]
[1771361932353,1.24578287,84.959,84.921,3.76778857]
[1771361932554,1.99586981,84.95,84.921,3.76778857]
[1771361932755,1.99586981,84.95,84.913,74.1]
[1771361933458,10.6001,84.952,84.915,3.66167067]
[1771361935358,1.24578287,84.959,84.913,74.1]
[1771361935359,11.84498287,84.959,84.918,3.66167067]
[1771361938063,10.5999,84.953,84.918,3.66167067]
[1771361939162,10.5999,84.953,84.92,1.99586981]
[1771361939363,10.5999,84.953,84.921,3.66167067]
[1771361940161,1.24578287,84.959,84.921,3.66167067]
[1771361940362,3.91906555,84.939,84.89,1.99586981]
[1771361941161,3.91906555,84.919,84.87,1.99586981]
[1771361941660,3.91906555,84.919,84.88,1.99586981]
[1771361941858,3.91906555,84.947,84.9,1.99586981]
[1771361942260,14.51976555,84.947,84.903,3.66167067]
[1771361942666,14.51976555,84.947,84.91,1.99586981]
[1771361943056,14.51976555,84.947,84.91,5.65754048]
[1771361943361,14.51976555,84.947,84.84,35.31]
[1771361943362,1.99586981,84.95,84.9,76.09586981]
[1771361943556,3.91906555,84.949,84.9,76.09586981]
[1771361943758,3.91906555,84.949,84.9,79.75754048]
[1771361943966,1.99586981,84.94,84.902,10.6062]
[1771361944371,3.91906555,84.948,84.9,77.76167067]
[1771361944372,3.91906555,84.948,84.903,3.66167067]
[1771361944668,3.91906555,84.939,84.892,3.66167067]
[1771361945267,3.91906555,84.939,84.902,10.6062]
[1771361945866,18.26550866,84.965,84.911,3.66167067]
[1771361946166,21.81560582,85.01,84.911,3.66167067]
[1771361946167,3.91906555,84.999,84.951,3.66167067]
[1771361946367,3.91906555,84.999,84.95,1.99586981]
[1771361946368,1.99586981,84.99,84.952,74.1]
[1771361946558,1.99586981,84.97,84.929,3.66167067]
[1771361946765,3.91906555,85.011,84.961,3.66167067]
[1771361947071,1.99586981,84.98,84.944,3.66167067]
[1771361948065,1.99586981,84.98,84.931,74.1]
[1771361948269,3.91906555,84.989,84.928,3.66167067]
[1771361948270,1.99586981,84.97,84.928,3.66167067]
[1771361948970,1.71441455,84.939,84.86,1.99586981]
[1771361949161,1.71441455,84.939,84.871,14.12360297]
[1771361949374,1.99586981,84.92,84.881,14.12360297]
[1771361949668,1.99586981,84.92,84.87,1.99586981]
[1771361949869,1.71441455,84.939,84.88,14.08789996]
[1771361950076,10.6018,84.938,84.88,14.08789996]
[1771361950371,1.71441455,84.939,84.88,14.08789996]
[1771361950573,1.71441455,84.939,84.882,24.69659996]
[1771361950774,1.71441455,84.939,84.883,14.08789519]
[1771361951773,12.31611455,84.939,84.884,10.6084]
[1771361952275,10.603,84.928,84.874,10.6097]
[1771361952668,10.603,84.928,84.874,24.50858254]
[1771361954976,5.94514181,84.93,84.88,13.91281939]
[1771361955175,5.94514181,84.93,84.861,13.91281939]
[1771361955475,10.604,84.921,84.865,13.91281939]
[1771361956374,5.94514181,84.95,84.879,13.9137023]
[1771361957370,10.6016,84.94,84.881,13.9137023]
[1771361957870,5.94514181,84.95,84.881,13.9137023]
[1771361958078,10.601,84.945,84.889,13.9076793]
[1771361958879,5.94514181,84.99,84.909,13.9076793]
[1771361959079,5.94514181,84.97,84.909,13.9076793]
[1771361959279,9.02626771,84.969,84.909,13.9076793]
[1771361959575,5.94514181,84.97,84.889,74.1]
[1771361959576,10.5987,84.963,84.911,13.9076793]
[1771361960779,10.5987,84.963,84.88,5.94514181]
[1771361960780,10.5987,84.963,84.912,24.4450689]
[1771361960973,10.5987,84.963,84.913,13.8400689]
[1771361962776,10.5987,84.963,84.914,10.6047]
[1771361964386,10.5987,84.963,84.915,13.86480809]
[1771361964580,5.94514181,84.97,84.921,10.6038]
[1771361964775,10.5973,84.974,84.922,13.86480809]
[1771361965585,5.94514181,85.01,84.934,13.86480809]
[1771361965776,9.03126196,85.009,84.934,13.86480809]
[1771361965971,9.03126196,85.008,84.934,13.86480809]
[1771361966177,10.5955,84.988,84.934,13.86480809]
[1771361966379,5.94514181,84.99,84.934,13.86480809]
[1771361966886,10.5958,84.986,84.935,10.6021]
[1771361968283,9.02995192,84.989,84.901,13.80403221]
[1771361968483,9.02995192,84.988,84.902,74.1]
[1771361968683,5.94514181,84.99,84.902,74.1]
[1771361968684,9.02995192,84.987,84.903,13.80403221]
[1771361968881,9.02995192,84.986,84.903,13.80403221]
[1771361969083,5.94514181,84.97,84.903,13.80403221]
[1771361969386,9.02995192,84.969,84.903,13.80403221]
[1771361969581,5.94514181,84.97,84.903,13.80403221]
[1771361969582,9.02995192,84.968,84.903,13.80403221]
[1771361969779,9.02995192,84.967,84.903,13.80403221]
[1771361969978,9.02995192,84.966,84.914,10.6047]
[1771361970185,10.5982,84.967,84.915,13.82454417]
[1771361970381,5.94514181,84.97,84.915,13.82454417]
[1771361970887,16.54294181,84.97,84.924,10.6034]
[1771361971386,5.94514181,84.97,84.927,10.603]
[1771361971587,5.94514181,84.97,84.927,24.42754417]
[1771361971988,1.99604888,84.96,84.927,24.42754417]
[1771361972189,1.99604888,84.96,84.903,74.1]
[1771361972190,1.99604888,84.97,84.931,10.6025]
[1771361972383,1.99604888,84.97,84.931,13.83855424]
[1771361972786,1.99604888,84.97,84.938,10.6017]
[1771361974186,1.99604888,84.98,84.939,13.846551]
[1771361974395,1.99604888,84.97,84.93,13.846551]
[1771361975186,1.99604888,84.98,84.93,15.84259988]
[1771361975383,1.99604888,84.97,84.93,13.846551]
[1771361975892,10.593,85.008,84.961,13.83368265]
[1771361977189,10.5948,84.994,84.961,13.83368265]
[1771361977394,1.99604888,85.0,84.961,13.83368265]
[1771361980287,1.99604888,85.0,84.897,35.31]
[1771361980288,1.99604888,85.02,84.971,13.95100736]
[1771361980492,1.99604888,85.01,84.971,13.95100736]
[1771361981293,1.99604888,85.02,84.973,13.95100736]
[1771361981493,1.99604888,85.03,84.981,13.95100736]
[1771361981900,1.99604888,85.03,84.993,13.91972508]
[1771361982099,1.99604888,85.04,84.993,13.91972508]
[1771361983100,12.58634888,85.03,84.993,13.91972508]
[1771361983305,1.99604888,85.03,84.993,13.91972508]
[1771361985296,10.5875,85.053,85.002,13.95008797]
[1771361985502,1.99604888,85.03,85.002,13.95008797]
[1771361986400,1.99604888,85.03,84.995,10.5946]
[1771361986605,1.99604888,85.01,84.978,10.5967]
[1771361987490,1.99604888,85.01,84.969,13.95141977]
[1771361987892,5.9341059,85.03,84.969,13.95141977]
[1771361988091,10.5909,85.026,84.972,10.5974]
[1771361988296,5.9341059,85.03,84.973,13.94632562]
[1771361989203,10.5916,85.02,84.973,13.94632562]
[1771361990307,5.9341059,85.01,84.961,10.5988]
[1771361990500,5.9341059,85.01,84.962,13.88829653]
[1771361990902,16.5269059,85.01,84.964,10.5985]
[1771361991402,5.9341059,85.03,84.962,13.88829653]
[1771361992007,10.5917,85.019,84.978,24.45423374]
[1771361992306,10.5917,85.019,84.978,13.85753374]
[1771361993808,8.91866905,85.061,84.999,13.82938331]
[1771361994005,5.92976786,85.06,84.999,13.82938331]
[1771361994204,5.92976786,85.06,84.945,74.1]
[1771361994205,5.92976786,85.02,84.984,13.82938331]
[1771361994608,74.1,85.038,84.984,13.82938331]
[1771361994907,74.1,85.038,84.985,10.5958]
[1771361994908,10.5906,85.027,84.985,10.5958]
[1771361995108,10.5906,85.027,84.986,13.82938331]
[1771361995302,74.1,85.071,84.986,13.82938331]
[1771361995497,5.92976786,85.06,84.986,13.82938331]
[1771361996201,8.91758973,85.07,84.986,13.82938331]
[1771361996202,10.5892,85.039,84.986,13.82938331]
[1771361996597,5.92976786,85.04,84.986,13.82938331]
[1771361996796,10.5904,85.03,84.986,13.82938331]
[1771361997505,5.92976786,85.02,84.952,13.83520476]
[1771361998104,5.92976786,85.02,84.966,13.87241494]
[1771361998306,5.92976786,85.04,84.966,13.87241494]
[1771361998801,5.92976786,85.04,84.961,74.1]
[1771361998802,10.5891,85.04,84.991,10.5951]
[1771361999300,5.92976786,85.03,84.974,13.87241494]
[1771361999507,5.92976786,84.98,84.895,13.87241494]
[1771361999709,18.3839375,85.018,84.895,13.87241494]
[1771362000015,5.92976786,84.98,84.927,10.73244512]
[1771362000199,5.92976786,84.96,84.896,74.1]
[1771362000404,5.92976786,84.94,84.897,10.73244512]
[1771362000606,5.92976786,84.97,84.897,10.73244512]
[1771362000805,5.92976786,84.97,84.918,10.73244512]
[1771362001606,5.92976786,84.97,84.93,10.73244512]
[1771362002013,5.92976786,85.01,84.936,10.94768219]
[1771362002206,5.92976786,84.99,84.936,10.94768219]
[1771362003207,5.92976786,84.97,84.918,10.94768219]
[1771362004104,10.5981,84.968,84.918,10.94768219]
[1771362004306,5.92976786,84.97,84.918,10.94768219]
[1771362005414,15.39277024,84.99,84.922,10.91339772]
[1771362005615,5.92976786,84.99,84.922,10.91339772]
[1771362006012,10.5955,84.988,84.925,10.90358682]
[1771362006617,5.92976786,84.99,84.93,10.90358682]
[1771362007217,5.92976786,85.01,84.943,10.90358682]
[1771362007516,9.46300238,85.009,84.943,10.90358682]
[1771362007713,5.92976786,84.99,84.943,10.90358682]
[1771362008106,5.92976786,85.01,84.943,10.90358682]
[1771362008411,5.92976786,85.01,84.954,10.88949345]
[1771362008812,5.92976786,84.99,84.932,10.88949345]
[1771362009217,5.92976786,84.99,84.853,29.21499117]
[1771362009218,5.92976786,84.96,84.913,10.88949345]
[1771362009410,9.46300238,84.999,84.913,10.88949345]
[1771362009607,5.92976786,85.0,84.921,10.88945952]
[1771362010018,5.92976786,85.0,84.939,10.90332042]
[1771362011213,5.92976786,85.0,84.94,10.6014]
[1771362011416,5.92976786,85.0,84.939,10.90332042]
[1771362011417,5.92976786,85.0,84.941,10.90332042]
[1771362012122,5.92976786,85.02,84.946,10.82819942]
[1771362013315,5.92976786,85.02,84.939,74.1]
[1771362013316,9.46300238,85.039,84.982,10.82819942]
[1771362013519,18.41653625,85.061,84.982,10.82819942]
[1771362013820,18.41653625,85.06,84.982,10.82819942]
[1771362014021,18.41653625,85.059,85.002,10.83048026]